Cogmind - Beta 14 @@@ ROGUE MODE // 2025.03.04 @ 06:38:25 Player: osman sinnoks Result: Destroyed by S-10 Pest with Light Assault Rifle Performance ------------- Evolutions (2) 1000 Regions Visited (7) 1400 Robots Destroyed (45) 225 Value Destroyed (1135) 1135 Prototype IDs (3) 60 Alien Tech Used (0) 0 Bonus (293) 293 TOTAL SCORE: 4113 Bonus ------- Follower Combat Kills 122 Aligned with FarCom 300 Friendly Fire -129 Cogmind --------- Core Integrity 0/550 Matter 391/400 Energy 265/265 System Corruption 8% Temperature Cool (0) Movement Core (550) Ox10 Location -8/Materials Parts ------- > --- POWER (1) -------- Improved Ion Engine > --- PROPULSION (4) --- Light Treads Carbon-fiber Leg VSS Leg > --- UTILITY (4) ------ Large Storage Unit Medium Matter Pod > --- WEAPON (2) ------- Katana > --- INVENTORY (15) --- Improved Ion Engine Carbon-fiber Leg VSS Leg Structural Scanner Signal Interpreter Field Recycling Unit (0) Light Assault Rifle Shotgun AWS/Autocannon Improved Datajack Welding Torch Peak State ------------ > --- POWER ------------ Improved Ion Engine > --- PROPULSION ------- VSS Leg VSS Leg VSS Leg Improved Carbon-fiber Leg > --- UTILITY ---------- Large Storage Unit Medium Matter Pod Hardened Medium Armor Plating > --- WEAPON ----------- Shotgun High-powered Shotgun > --- INVENTORY -------- Compact Wheel Structural Scanner Signal Interpreter Field Recycling Unit Light Assault Rifle AWS/Autocannon Improved Datajack Welding Torch [Rating: 29] Favorites ----------- Power Improved Ion Engine Engine Improved Ion Engine Power Core Light Nuclear Core Propulsion Wheel Treads Light Treads Leg Aluminum Leg Wheel Wheel Utility Heat Sink Device Heat Sink Storage Large Storage Unit Protection Hardened Light Armor Plating Weapon Heavy Particle Cannon Energy Gun Medium Laser Energy Cannon Heavy Particle Cannon Ballistic Gun Minigun Launcher Grenade Launcher Special Weapon Welding Torch Slashing Weapon Katana Build | -11 -10 -10 -9 -9 -9 -8 -8 ------- Run | Yrd Mat Min Mat Min Exi Min Mat Slots Evolved 4 | . . . 2 . . . 2 Power . | . . . . . . . . Propulsion 2 | . . . 1 . . . 1 Utility 2 | . . . 1 . . . 1 Weapon . | . . . . . . . . Parts Attached 80 | 7 . . 5 19 6 2 41 Power 10 | 1 . . 1 2 . . 6 Engine 9 | 1 . . 1 2 . . 5 Core 1 | . . . . . . . 1 Reactor . | . . . . . . . . Propulsion 31 | 2 . . 2 8 1 . 18 Treads 2 | . . . 1 . . . 1 Leg 12 | 2 . . 1 . . . 9 Wheel 17 | . . . . 8 1 . 8 Hover . | . . . . . . . . Flight . | . . . . . . . . Utility 16 | 2 . . 2 5 3 . 4 Device 3 | 1 . . 1 1 . . . Storage 4 | 1 . . . 1 1 . 1 Processor . | . . . . . . . . Hackware . | . . . . . . . . Protection 9 | . . . 1 3 2 . 3 Artifact . | . . . . . . . . Weapon 23 | 2 . . . 4 2 2 13 Energy Gun 4 | 2 . . . 1 . 1 . Energy Cannon 5 | . . . . . 1 . 4 Ballistic Gun 7 | . . . . . . 1 6 Ballistic Cannon . | . . . . . . . . Launcher 3 | . . . . 1 . . 2 Special Weapon 3 | . . . . 2 1 . . Impact Weapon . | . . . . . . . . Slashing Weapon 1 | . . . . . . . 1 Piercing Weapon . | . . . . . . . . Special Melee Weapon . | . . . . . . . . Unidentified Prototypes 1 | . . . . . 1 . . Parts Lost 37 | . . . 1 10 . . 26 Power 5 | . . . . 1 . . 4 Propulsion 14 | . . . . 3 . . 11 Utility 9 | . . . 1 3 . . 5 Weapon 9 | . . . . 3 . . 6 Highest Loss Streak 10 | . . . 1 6 . . 10 To Critical Strikes 1 | . . . . . . . 1 Average Slot Usage (%) 86 | . 100 100 96 83 99 100 81 Engine 9 | . 14 14 11 10 11 11 8 Leg 6 | . 28 28 23 4 . . 3 Wheel 22 | . . . . 21 33 33 26 Device 9 | . 14 14 10 13 11 11 6 Storage 9 | . 14 14 11 6 11 11 10 Protection 8 | . . . 8 9 11 11 9 Energy Gun 5 | . 28 28 22 8 . 8 . Energy Cannon 4 | . . . . . . . 7 Ballistic Gun 2 | . . . . . . 8 4 Launcher 2 | . . . . 1 . . 3 Special Weapon 3 | . . . . 8 21 5 . Peak Build Rating 29 | 7 7 7 10 12 19 16 29 Average Rating 14 | 4 7 7 8 9 13 15 19 On Entrance 9 | . 7 7 7 10 12 15 16 Naked Turns . | . . . . . . . . Heaviest Build 45 | 15 15 15 18 20 35 37 45 Greatest Support 46 | 20 20 20 30 36 36 36 46 Greatest Overweight (x) 10 | . . . . . . 1 10 Average Overweight (x) . | . . . . . . . . Largest Inventory Capacity 15 | 8 8 8 8 8 15 15 15 Average Capacity 11 | 7 8 8 8 6 11 15 15 Most Carried 15 | 8 8 8 8 8 12 15 15 Average Carried 10 | 5 7 8 7 6 8 13 13 Final Capacity 15 | 8 8 8 8 8 15 15 15 Final Carried 15 | 6 8 8 8 8 11 15 13 Class Distribution -------------------- 69% | Scavenger-Mutant 30% | Mutant Dominant Class ---------------- Mutant | -10/Materials Mutant | -10/Mines Mutant | -9/Materials Scavenger-Mutant | -9/Mines Scavenger-Mutant | -9/Exiles Scavenger-Mutant | -8/Mines Scavenger-Mutant | -8/Materials Resources | -11 -10 -10 -9 -9 -9 -8 -8 ----------- Run | Yrd Mat Min Mat Min Exi Min Mat Matter Collected 1449 | 213 54 . 45 240 . 89 808 Remotely . | . . . . . . . . Salvage Created 1658 | 50 85 . 158 142 . 49 1174 Parts 99 | 6 7 . 8 8 . 2 68 Haulers Intercepted 1 | . 1 . . . . . . Recyclers Shooed 4 | 1 . . . 1 . . 2 Parts Field Recycled . | . . . . . . . . Retrieved Matter . | . . . . . . . . Parts Self-Destructed . | . . . . . . . . Prevented . | . . . . . . . . Kills | -11 -10 -10 -9 -9 -9 -8 -8 ------- Run | Yrd Mat Min Mat Min Exi Min Mat Combat Hostiles Destroyed 27 | . 2 . 3 . . . 22 Melee 5 | . . . . . . . 5 Guns 15 | . 2 . 3 . . . 10 Cannons 5 | . . . . . . . 5 Classes Destroyed 13 | 1 2 . 3 2 . . 5 Worker 5 | . . . . 1 . . 4 Builder 4 | . . . 1 . . . 3 Tunneler 3 | 2 . . . 1 . . . Hauler 1 | . 1 . . . . . . Recycler 3 | . . . . 1 . . 2 Watcher 1 | . . . . . . . 1 Swarmer 7 | . 2 . . . . . 5 Grunt 9 | . . . 2 . . 1 6 Brawler 1 | . . . . . . . 1 Duelist 1 | . . . . . . . 1 Sentry 5 | . . . 1 . . . 4 Specialist 4 | . . . . . . . 4 Hunter 1 | . . . . . . . 1 Best Kill Streak 7 | 2 2 . 3 1 . . 7 Combat Bots Only 5 | . 2 . 2 . . . 5 Max Kills in Single Turn 2 | 1 1 . 1 1 . 1 2 Gunslinging . | . . . . . . . . Exploded . | . . . . . . . . Melee 1 | . . . . . . . 1 Uniques/NPCs Destroyed . | . . . . . . . . Combat | -11 -10 -10 -9 -9 -9 -8 -8 -------- Run | Yrd Mat Min Mat Min Exi Min Mat Hostile Shots Fired 362 | . 6 . 16 55 . 7 278 Missed 95 | . . . 6 16 . 3 70 Damage Taken 4358 | . 76 . 139 1245 . 34 2864 Core 935 | . 49 . 10 325 . . 551 Absorbed by Shields . | . . . . . . . . Core Remaining (%) 65 | 100 . 80 . . . 16 . Volleys Fired 148 | 6 9 . 9 27 . 2 95 Largest 2 | 2 2 . 2 2 . 2 2 Hottest 150 | 100 100 . 100 100 . 40 150 Shots Fired 238 | 12 18 . 18 32 . 3 155 Gun 171 | 12 18 . 18 26 . 1 96 Cannon 57 | . . . . . . . 57 Launcher 4 | . . . . 2 . . 2 Special 6 | . . . . 4 . 2 . Kinetic 97 | . . . . . . 1 96 Thermal 137 | 12 18 . 18 30 . 2 57 Explosive 4 | . . . . 2 . . 2 Electromagnetic . | . . . . . . . . Robot Hit Streak 20 | 5 5 . 20 5 . . 10 Robot Miss Streak 6 | 2 3 . . 3 . 4 6 Penetration Max . | . . . . . . . . Secondary Targets 1 | . . . . . . . 1 Max Gunslinging Chain 1 | . . . . . . . 1 Shots Hit Robots 167 | 8 10 . 15 15 . . 119 Core Hits 73 | 2 4 . 9 9 . 1 48 Critical Kills 3 | . . . . . . . 3 Critical Parts Destroyed 1 | . . . . . . . 1 Critical Strikes 6 | . . . 1 . . . 5 Burn 1 | . . . 1 . . . . Meltdown 2 | . . . . . . . 2 Destroy 2 | . . . . . . . 2 Sever 1 | . . . . . . . 1 Melee Attacks 22 | . . . . . . . 22 Impact . | . . . . . . . . Slashing 22 | . . . . . . . 22 Piercing . | . . . . . . . . Sneak Attacks 2 | . . . . . . . 2 Combat Hostiles . | . . . . . . . . Follow-up Attacks . | . . . . . . . . Damage Inflicted 3381 | 113 129 . 191 253 . 3 2692 Guns 1702 | 113 125 . 189 158 . . 1117 Cannons 825 | . . . . . . . 825 Explosions 246 | . . . . 84 . . 162 Melee 571 | . . . . . . . 571 Ramming 24 | . 4 . 2 1 . . 17 Kinetic 1117 | . . . . . . . 1117 Thermal 1423 | 113 125 . 189 168 . 3 825 Explosive 246 | . . . . 84 . . 162 Electromagnetic . | . . . . . . . . Impact . | . . . . . . . . Slashing 571 | . . . . . . . 571 Piercing . | . . . . . . . . Highest Corruption 10 | . . . . 10 10 10 8 Average Corruption 9 | . . . . 10 10 10 7 Corruption Purged . | . . . . . . . . Corruption Blocked . | . . . . . . . . Effects 32 | . . . . 14 7 3 8 Message Errors 5 | . . . . 2 2 . 1 Matter Fused 9 | . . . . 3 1 . 5 Heat Flow Errors 5 | . . . . 2 2 1 . Energy Discharges 3 | . . . . 1 1 1 . Data Loss (minor) 6 | . . . . 4 1 1 . Data Loss (major) 2 | . . . . 1 . . 1 Alerts 1 | . . . . 1 . . . Weapon Failures 1 | . . . . . . . 1 Overload Shots . | . . . . . . . . Overflow Damage 64 | . . . . . . . 64 Projectiles 37 | . . . . . . . 37 Explosions . | . . . . . . . . Melee 27 | . . . . . . . 27 Knockbacks . | . . . . . . . . Impact . | . . . . . . . . Kinetic . | . . . . . . . . Secondary . | . . . . . . . . Self-Inflicted Damage 26 | . . . . . . . 26 Shots 1 | . . . . . . . 1 Rammed 2 | . . . . 1 . . 1 Targets Rammed 5 | . 1 . 2 1 . . 1 Kicked 3 | . 1 . 2 . . . . Crushed . | . . . . . . . . Highest Temperature 331 | 198 78 . 90 193 237 3 331 Average Temperature 91 | 107 37 . 44 40 122 3 119 Received Heat Transfer 803 | . . . 72 92 . . 639 Effects 2 | . . . . . . . 2 Energy Bleed 1 | . . . . . . . 1 Interference 1 | . . . . . . . 1 Siege Activations . | . . . . . . . . Robots Corrupted . | . . . . . . . . Combat Hostiles . | . . . . . . . . Parts Fried . | . . . . . . . . Impact Corruptions . | . . . . . . . . Robots Melted 2 | . . . . . . . 2 Combat Hostiles 2 | . . . . . . . 2 Parts Melted 6 | . . . . . . . 6 Heat Transferred 3015 | 333 370 . 629 437 . 25 1221 Parts Sabotaged . | . . . . . . . . Parts Stolen . | . . . . . . . . Parts Stripped . | . . . . . . . . Power Chain Reactions . | . . . . . . . . Alert | -11 -10 -10 -9 -9 -9 -8 -8 ------- Run | Yrd Mat Min Mat Min Exi Min Mat Peak Influence 232 | 10 98 37 143 90 . 196 232 Initial 76 | . 6 37 14 55 . . 76 Average 44 | 3 29 37 76 14 . 164 54 Maximum Alert Level 1 | . . . . . . . 1 Low Security (%) 99 | 100 100 100 100 100 . 100 99 Level 1 . | . . . . . . . . Level 2 . | . . . . . . . . Level 3 . | . . . . . . . . Level 4 . | . . . . . . . . Level 5 . | . . . . . . . . High Security . | . . . . . . . . Max Security . | . . . . . . . . Squads Dispatched 9 | . . . 2 . . . 7 Investigation 2 | . . . 1 . . . 1 Extermination . | . . . . . . . . Reinforcement 4 | . . . 1 . . . 3 Assault . | . . . . . . . . Garrison 3 | . . . . . . . 3 Intercept . | . . . . . . . . Searches Triggered . | . . . . . . . . Construction Impeded . | . . . . . . . . Haulers Reinforced . | . . . . . . . . Active Scanning Responses . | . . . . . . . . Cargo Convoy Interrupts . | . . . . . . . . Stealth | -11 -10 -10 -9 -9 -9 -8 -8 --------- Run | Yrd Mat Min Mat Min Exi Min Mat Distress Signals 8 | . 1 . 2 . . . 5 Communications Jammed . | . . . . . . . . Distress Signals . | . . . . . . . . Times Spotted 66 | . 7 . 8 12 . 8 31 Peak Tracking Total 7 | . 6 . 5 6 . 6 7 Tactical Retreats 3 | . 1 . . . . . 2 Traps | -11 -10 -10 -9 -9 -9 -8 -8 ------- Run | Yrd Mat Min Mat Min Exi Min Mat Traps Triggered 2 | . 1 . . . . . 1 Indirectly . | . . . . . . . . Trap Hack Attempts . | . . . . . . . . Triggered . | . . . . . . . . Disarmed . | . . . . . . . . Reprogrammed . | . . . . . . . . Reused . | . . . . . . . . Traps Extracted . | . . . . . . . . Installed . | . . . . . . . . Triggered . | . . . . . . . . Machines | -11 -10 -10 -9 -9 -9 -8 -8 ---------- Run | Yrd Mat Min Mat Min Exi Min Mat Machines Disabled 4 | . . . . 2 . . 2 Max in Single Turn 2 | . . . . 2 . . 1 Machines Repaired . | . . . . . . . . Machines Dismantled . | . . . . . . . . Machines Sabotaged . | . . . . . . . . Overloaded Fab Kills . | . . . . . . . . Hacking | -11 -10 -10 -9 -9 -9 -8 -8 --------- Run | Yrd Mat Min Mat Min Exi Min Mat Machines Accessed 10 | . 3 . 4 . . . 3 Terminals 8 | . 3 . 4 . . . 1 Fabricators . | . . . . . . . . Repair Stations . | . . . . . . . . Recycling Units 1 | . . . . . . . 1 Scanalyzers . | . . . . . . . . Garrison Access 1 | . . . . . . . 1 Total Hacks 37 | . 9 . 14 . . . 14 Successful 23 | . 6 . 9 . . . 8 Failed 14 | . 3 . 5 . . . 6 Catastrophic 2 | . 1 . . . . . 1 Database Lockouts . | . . . . . . . . Manual 12 | . 4 . 4 . 1 . 3 Terminals 29 | . 9 . 14 . . . 6 Fabricators . | . . . . . . . . Repair Stations . | . . . . . . . . Recycling Units 7 | . . . . . . . 7 Scanalyzers . | . . . . . . . . Garrison Access 1 | . . . . . . . 1 Terminal Hacks 10 | . 3 . 5 . . . 2 Prototype ID Bank 1 | . 1 . . . . . . Branch Access Points 2 | . 1 . 1 . . . . Alert Level 2 | . . . 1 . . . 1 Investigation Status 1 | . . . . . . . 1 Registered Components 1 | . 1 . . . . . . Zone Layout 3 | . . . 3 . . . . Fabricator Hacks . | . . . . . . . . Repair Station Hacks . | . . . . . . . . Recycling Unit Hacks 5 | . . . . . . . 5 Recycle Component 1 | . . . . . . . 1 Process 2 | . . . . . . . 2 Report Inventory 1 | . . . . . . . 1 Retrieve Matter 1 | . . . . . . . 1 Scanalyzer . | . . . . . . . . Garrison Access Hacks . | . . . . . . . . Unauthorized Hacks 8 | . 3 . 4 . . . 1 Terminals 8 | . 3 . 4 . . . 1 Botnet 8 | . 3 . 4 . . . 1 Fabricators . | . . . . . . . . Repair Stations . | . . . . . . . . Recycling Units . | . . . . . . . . Scanalyzers . | . . . . . . . . Garrison Access . | . . . . . . . . Data Cores Recovered . | . . . . . . . . Used . | . . . . . . . . Hacking Detections 9 | . 3 . 3 . . . 3 Full Trace Events 1 | . . . 1 . . . . Feedback Events . | . . . . . . . . Feedback Blocked . | . . . . . . . . Robot Schematics Acquired . | . . . . . . . . Robots Built . | . . . . . . . . Authchips . | . . . . . . . . Time . | . . . . . . . . Total Robot Build Rating . | . . . . . . . . Part Schematics Acquired . | . . . . . . . . Parts Built . | . . . . . . . . Authchips . | . . . . . . . . Time . | . . . . . . . . Total Part Build Rating . | . . . . . . . . Parts Repaired . | . . . . . . . . Time . | . . . . . . . . Parts Recycled 1 | . . . . . . . 1 Recycled Matter 24 | . . . . . . . 24 Retrieved Matter 24 | . . . . . . . 24 Retrieved Components . | . . . . . . . . Parts Scanalyzed . | . . . . . . . . Part Schematics Acquired . | . . . . . . . . Parts Damaged . | . . . . . . . . Bothacking | -11 -10 -10 -9 -9 -9 -8 -8 ------------ Run | Yrd Mat Min Mat Min Exi Min Mat Used RIF Installer . | . . . . . . . . Robots Hacked . | . . . . . . . . Non-combat . | . . . . . . . . Combat . | . . . . . . . . Robot Hacks Applied . | . . . . . . . . Relay Couplers Released . | . . . . . . . . Fabnet Peak Effective % . | . . . . . . . . Robots Rewired . | . . . . . . . . Allies Hacked . | . . . . . . . . Hacks Repelled . | . . . . . . . . Allies | -11 -10 -10 -9 -9 -9 -8 -8 -------- Run | Yrd Mat Min Mat Min Exi Min Mat Total Allies 3 | . . . . 3 . . . Largest Group 3 | . . . . 3 3 2 1 Highest-Rated Group 40 | . . . . 40 40 24 16 Highest-Rated Ally 16 | . . . . 16 16 16 16 Total Orders . | . . . . . . . . Ally Attacks 41 | . . . . 27 . 12 2 Total Damage 483 | . . . . 311 . 143 29 Kills 16 | . . . . 7 . 9 . Allies Corrupted . | . . . . . . . . Allies Melted . | . . . . . . . . Intel | -11 -10 -10 -9 -9 -9 -8 -8 ------- Run | Yrd Mat Min Mat Min Exi Min Mat Robot Analysis Total . | . . . . . . . . Derelict Logs Recovered 1 | . . . . 1 . . . Drone Launches . | . . . . . . . . Drone Recoveries . | . . . . . . . . Exploration | -11 -10 -10 -9 -9 -9 -8 -8 ------------- Run | Yrd Mat Min Mat Min Exi Min Mat Turns Passed 4167 | 126 242 64 304 824 394 42 2171 Spaces Moved 2171 | 78 177 54 188 728 409 28 509 Core 55 | 6 . . . 45 . . 4 Treads 21 | . . . . . . . 21 Legs 625 | 72 177 54 188 65 . . 69 Wheels 1470 | . . . . 618 409 28 415 Hover . | . . . . . . . . Flight . | . . . . . . . . Fastest Speed 50 | 50 120 120 120 50 86 86 80 Average Speed 101 | 114 120 120 120 90 86 98 114 Slowest Speed 550 | 120 120 120 120 120 86 101 550 Overloaded Moves . | . . . . . . . . Propulsion Burnouts . | . . . . . . . . Robots Hopped . | . . . . . . . . Cave-ins Triggered 1 | . . . . 1 . . . Exploration Rate (%) 35 | 4 39 18 22 98 61 8 32 Regions Visited 7 Branch Regions 4 Pre-discovered Areas 1 | . . . . 1 . . . Known Exits Taken 2 | . 1 . 1 . . . . Unknown Exits Taken 5 | 1 . 1 . 1 1 1 . Scrap Searched 3 | . . 1 . 2 . . . Spaces Dug . | . . . . . . . . Terrain Destroyed 53 | . . . . 25 . . 28 Melee . | . . . . . . . . Projectile 16 | . . . . . . . 16 AOE 37 | . . . . 25 . . 12 Terrain Rammed . | . . . . . . . . Walls Destroyed . | . . . . . . . . Machines Disabled . | . . . . . . . . Actions | -11 -10 -10 -9 -9 -9 -8 -8 --------- Run | Yrd Mat Min Mat Min Exi Min Mat Total 3862 | 102 190 53 248 861 452 38 1918 Wait 1349 | . . . 39 65 26 3 1216 Move 2164 | 77 176 53 187 727 408 27 509 Hop . | . . . . . . . . Pick Up 66 | 12 3 . 3 13 5 4 26 Fast Attach 12 | 1 . . 2 4 2 . 3 Attach 41 | 6 . . 2 9 . . 24 Detach . | . . . . . . . . Swap 27 | . . . 1 6 4 2 14 Drop 28 | . 1 . 3 9 7 . 8 Fire 148 | 6 9 . 9 27 . 2 95 Melee 22 | . . . . . . . 22 Ram 2 | . . . . 1 . . 1 Kick 3 | . 1 . 2 . . . . Crush . | . . . . . . . . Escape Stasis . | . . . . . . . . Rewire . | . . . . . . . . Trap . | . . . . . . . . Miscellaneous . | . . . . . . . . Route ------- -11/Scrapyard -10/Materials (discovered 2 exits: *Min x2) -10/Mines -9/Materials (discovered 3 exits: *Min x2 / Sto) -9/Mines (discovered 3 exits: *Mat x2 / *Exi) -9/Exiles -8/Mines -8/Materials History --------- Turn | Location | Event 4 | -11/Scrapyard | Discovered new exit (range 16) 127 | -11/Scrapyard | Entered Materials 263 | -10/Materials | Identified exit to Mines 303 | -10/Materials | Build established: Mutant 369 | -10/Materials | Entered Mines 421 | -10/Mines | Discovered new exit (range 11) 433 | -10/Mines | Entered Materials 433 | -9/Materials | Evolved 2 slots: Propulsion x1, Utility x1 444 | -9/Materials | Discovered new exit (range 12) 533 | -9/Materials | Identified exit to Mines 533 | -9/Materials | Identified exit to Storage 737 | -9/Materials | Entered Mines 788 | -9/Mines | Assembled infested the area 857 | -9/Mines | Assisted by bots powering up and referring to "LRC-V3" 878 | -9/Mines | Lost 6 parts (1p3n1u1w) 987 | -9/Mines | Discovered new exit (range 15) 1068 | -9/Mines | Core integrity fell below 50% 1081 | -9/Mines | Crushed by falling debris 1081 | -9/Mines | System corruption reached 10% 1112 | -9/Mines | Lost 3 parts (2u1w) 1251 | -9/Mines | Core integrity fell below 20% 1352 | -9/Mines | Build established: Scavenger-Mutant 1376 | -9/Mines | Discovered new exit (range 4) 1547 | -9/Mines | Deemed a non-threat by the Exiles lab entrance 1548 | -9/Mines | Discovered new exit (range 5) 1561 | -9/Mines | Entered Exiles 1561 | -9/Exiles | Accompanied by 3 allies 1582 | -9/Exiles | Met 8R-AWN 1598 | -9/Exiles | Met EX-HEX 1623 | -9/Exiles | Met EX-BIN 1635 | -9/Exiles | Aligned with FarCom system 1636 | -9/Exiles | Given EX-Vault access code 1659 | -9/Exiles | Opened EX-Vault 1663 | -9/Exiles | Found Prototype Energy Cannon 1663 | -9/Exiles | Identified Gui. Plasma Cannon 1673 | -9/Exiles | Found Prototype Ballistic Cannon 1696 | -9/Exiles | Warned to stay clear of 0b10 Research branches 1720 | -9/Exiles | Met EX-DEC 1918 | -9/Exiles | Discovered new exit (range 14) 1955 | -9/Exiles | Left Exiles lab with AWS/Autocannon 1955 | -9/Exiles | Entered Mines 1955 | -8/Mines | Accompanied by 3 allies 1988 | -8/Mines | Discovered new exit (range 4) 1997 | -8/Mines | Entered Materials 1997 | -8/Materials | Accompanied by 1 ally 1997 | -8/Materials | Evolved 2 slots: Propulsion x1, Utility x1 3530 | -8/Materials | Core integrity fell below 50% 3557 | -8/Materials | Lost 10 parts (2p4n2u2w) 3795 | -8/Materials | Build established: Mutant 3842 | -8/Materials | Lost 4 parts (1p3w) 3926 | -8/Materials | Garrison activated, responded to threat 3940 | -8/Materials | Core integrity fell below 20% 3972 | -8/Materials | Lost 4 parts (1p3n) 4132 | -8/Materials | Build established: Scavenger-Mutant 4168 | -8/Materials | Destroyed by S-10 Pest with Light Assault Rifle Last Messages --------------- 04094_ Destroyed Com. Wheel. 04094_ Destroyed Tractor Beam. 04099_ K-01 Serf destroyed. 04100_ W-25 Informer sends out distress signal. 04101_ K-01 Serf collects debris. 04101_ K-01 Serf destroyed. 04119_ System corrupted: Matter fused (-7). 04119_ Acquired 7 matter. 04127_ W-25 Informer sends out distress signal. 04138_ Y-45 Defender destroyed. 04140_ K-01 Serf collects debris. 04140_ Lgt. Armor Plating destroyed. 04140_ Com. Wheel destroyed. 04141_ System corrupted: Substantial component data lost. 04144_ K-01 Serf collects debris. 04153_ S-10 Pest destroyed. 04156_ Acquired 8 matter. 04161_ Wheel destroyed. 04168_ System corrupted: Matter fused (-9). Map ----- +----------------------------------------------------+ | ?????????????????????????????????????????????????? | | ?????????????????????????????????????????????????? | | ?????????????????????????????????????????????????? | | ?????????????????????????????????????????????????? | | ?????????????????????????????????????????????????? | | ?????????????????????????????????????????????????? | | ?????????????????????????????????????????????????? | | ?????????????????????????????????????????????????? | | ?????????????????????????????????????????????????? | | ?????????????????????????????????????????????????? | | ?????????????????????????????????????????????????? | | ???????????????H?????????????????????????????????? | | ?????????????????????????????????????????????????? | | ?????????????????????????????????????????????????? | | ?????????????????????????????????????????????????? | | ????????????????????????##???????????????????????? | | ????????????????######### ####???????????????????? | | ????????????????# !# ???????????????????? | | ????????????????# ! # ???????????????????? | | ????????????????# ! # ""????????????????????? | | ????????????????# # S""?##########?????????? | | ???????????????# #? ""??# #?????????? | | ??????????????# #? ??# """ #?????????? | | #################+######+#### """ #?????????? | | % ! u[ !![# [ """ #?????????? | | ^u @=!%=+! % #?????????? | | % k s![[!*#%[ """ #?????????? | | #####/######+#############+##!# = """ #?????????? | | ?# # = #?????# #%# """ #?????????? | | ?# # #?????# =[#!# ! #?????????? | | ?# # w ! #?????# " " #*### ######?????????? | | ## # ! #?????# "G" #%#?###??????????????? | | # # ! #?????# " #=#??????????????????? | | # + #?????# #=#??????????????????? | | #+#############?????########!#??????????????????? | | %# ##################### #%#??????????????????? | | # + #!#??????????????????? | | + # # #??????????????????? | | # # # #??????????????????? | | ########### #### # # #??????????????????? | | # ## #??# # # #??????????????????? | | # ## #??# # # #??????????????????? | | # ## #??# + # #??????????????????? | | # % ## #??# #### # ???????????????????? | | ## ## #??# #??###### ???????????????????? | | #+#+####### #??# #??# T # ???????????????????? | | # #??# #### # ???????????????????? | | + #??# + # ???????????????????? | | # #??#### # # ???????????????????? | | ########+## #?????# # # ####???????????????? | +----------------------------------------------------+ Best States ------------- Heat Dissipation 41 Energy Generation 16 Energy Capacity 290 Matter Stores 400 Matter Capacity 400 Sight Range 16 Terrain Scan Density 10 Armor Coverage 375 Evasion (%) 55 Recoil Reduction 1 Item Schematics ----------------- None Robot Schematics ------------------ None Fabricated ------------ Nothing Alien Tech Used ----------------- None Achievements -------------- None Challenges ------------ None Game ------ Seed BombardmentScanSword Manual? 0 Play Time 00:39:26 Cumulative 31.3 hours Start 2025.03.04 @ 05:56:11 End 2025.03.04 @ 06:38:25 Sessions 1 Manual Loads 0 Difficulty Rogue Special Mode None Game No. 61 Rogue 61 Adventurer 0 Explorer 0 Win Type - Total 0 Types 0/0/0/0/0/0/0/0/0 Lore% 20 Gallery% 33 Achievement% 26 Wizard Run 0 Options --------- Layout 2 ASCII 0 Keyboard 0 Movement Mouse Keybinds 0 Fullscreen 1 Font 24/Smallcaps Map View 50x49 Zoom Use 0% Tactical HUD 1 Map Filters NONE Filters NONE Steam 1 RUN: dc4e46a2-9db0-472d-8537-3134c977be25